bitfinex/quotes_SOLUSD_20240703
["timestamp","ask_amount","ask_price","bid_price","bid_amount"]
[1719976589371,20.04,149.68,149.51,28.9]
[1719976589698,20.04,149.68,149.5,6.3074]
[1719976589970,20.04,149.68,149.4,25.0]
[1719976589971,6.359,149.62,149.44,20.04]
[1719976590173,40.04,149.61,149.42,15.1823]
[1719976590375,6.6871,149.55,149.43,6.6916]
[1719976590551,6.6871,149.55,149.39,0.03966415]
[1719976590552,40.04,149.54,149.39,0.03966415]
[1719976590756,20.04,149.54,149.44,6.6915]
[1719976590954,20.04,149.54,149.46,6.6904]
[1719976591180,6.3302804,149.57,149.42,28.9]
[1719976591385,6.3302804,149.57,149.39,0.03966415]
[1719976591386,16.7033,149.68,149.39,25.03966415]
[1719976591684,6.31134266,149.63,149.4,100.0]
[1719976591997,28.9,149.61,149.4,100.0]
[1719976592292,28.9,149.66,149.39,0.03966415]
[1719976592293,65.6554,149.57,149.39,0.03966415]
[1719976592459,20.04,149.52,149.39,0.03966415]
[1719976592869,20.0,149.51,149.39,0.03966415]
[1719976593080,20.0,149.51,149.41,6.6928]
[1719976593381,5.27929709,149.64,149.39,0.03966415]
[1719976593596,5.27929709,149.64,149.4,28.4]
[1719976593901,6.6864,149.56,149.41,28.9]
[1719976594060,16.7072,149.64,149.39,0.03966415]
[1719976594264,106.1153,149.68,149.54,6.687]
[1719976594265,6.6832,149.63,149.54,6.687]
[1719976594496,6.6827,149.64,149.55,6.6866]
[1719976594694,28.9,149.65,149.5,16.7222]
[1719976594915,28.9,149.65,149.4,106.4406]
[1719976595116,6.29102613,149.63,149.56,6.6861]
[1719976595283,26.33102613,149.63,149.4,6.4406]
[1719976595619,26.726,149.57,149.4,6.4406]
[1719976595795,20.04,149.56,149.47,6.6902]
[1719976596111,45.613,149.59,149.4,6.4406]
[1719976596407,45.613,149.59,149.44,6.6912]
[1719976596408,20.0,149.58,149.44,6.6912]
[1719976596591,0.17,149.57,149.44,6.6914]
[1719976596803,0.34,149.57,149.44,6.6915]
[1719976597103,6.6902,149.56,149.48,6.6897]
[1719976597285,6.6902,149.56,149.49,16.7229]
[1719976597689,6.29102613,149.63,149.54,6.687]
[1719976597902,6.29102613,149.63,149.55,16.7161]
[1719976598100,26.786811,149.65,149.55,16.7161]
[1719976598305,26.786811,149.65,149.56,0.34]
[1719976598485,6.26356239,149.63,149.61,6.6838]
[1719976599083,44.3412,149.8,149.61,23.393]
[1719976599284,6.6838,149.69,149.61,16.7092]
[1719976599513,12.93848238,149.69,149.67,6.6812]
[1719976599818,2.64584446,149.75,149.64,16.7059]
[1719976600118,6.6838,149.73,149.56,100.17]
[1719976600324,6.24903794,149.74,149.56,100.17]
[1719976600325,6.24903794,149.74,149.66,6.6814]
[1719976600488,2.64584446,149.75,149.57,49.07]
[1719976600489,2.64584446,149.75,149.57,29.07]
[1719976600690,2.64584446,149.75,149.58,120.17]
[1719976600889,2.64584446,149.75,149.69,16.7005]
[1719976601109,2.64584446,149.75,149.73,6.6785]
[1719976601318,2.64584446,149.75,149.63,6.3287]
[1719976601518,2.64584446,149.75,149.72,16.6972]
[1719976601811,2.64584446,149.75,149.73,6.6786]
[1719976602017,2.64584446,149.75,149.72,16.6972]
[1719976602200,2.64584446,149.75,149.64,0.17]
[1719976602402,22.68584446,149.75,149.55,6.3969]
[1719976602604,16.6958,149.74,149.55,6.3969]
[1719976602790,6.6784,149.74,149.64,6.6824]
[1719976602987,28.9,149.75,149.6,16.7101]
[1719976603188,6.6838,149.79,149.56,28.9]
[1719976603418,2.81584446,149.78,149.56,28.9]
[1719976603717,20.04,149.77,149.7,6.6799]
[1719976603930,20.04,149.74,149.64,6.6823]
[1719976604091,20.04,149.74,149.63,6.6827]
[1719976604286,20.04,149.72,149.55,6.3969]
[1719976604510,20.04,149.72,149.65,6.682]
[1719976604715,20.04,149.72,149.66,6.6816]
[1719976604892,26.7172,149.77,149.68,6.6808]
[1719976605210,2.64584446,149.78,149.7,6.6796]
[1719976605392,2.64584446,149.78,149.63,16.7069]
[1719976605591,6.6779,149.75,149.65,6.682]
[1719976605787,2.64589481,149.77,149.68,6.6805]
[1719976606017,20.04,149.76,149.7,6.6799]
[1719976606313,20.04,149.76,149.6,28.9]
[1719976606511,20.04,149.76,149.7,16.6994]
[1719976606816,20.04,149.75,149.66,16.7041]
[1719976607192,6.6838,149.79,149.67,0.17]
[1719976607396,6.22626824,149.81,149.76,6.6772]
[1719976607697,33.3523,149.92,149.66,116.4026]
[1719976607698,12.90486041,149.84,149.75,16.6937]
[1719976607905,6.22106041,149.84,149.75,16.6937]
[1719976608087,2.64589481,149.84,149.75,16.6937]
[1719976608291,20.04,149.89,149.78,16.6904]
[1719976608292,6.22260941,149.86,149.78,16.6904]
[1719976608488,6.22260941,149.86,149.78,23.3665]
[1719976608693,6.22260941,149.86,149.78,16.6904]
[1719976608896,20.04,149.89,149.78,16.6904]
[1719976609095,6.22727103,149.88,149.82,6.6745]
[1719976609297,6.22727103,149.88,149.74,0.34]
[1719976609298,6.22727103,149.88,149.8,6.6753]
[1719976609488,6.22727103,149.88,149.82,6.6746]
[1719976609692,6.22727103,149.88,149.8,6.6752]
[1719976609894,6.22727103,149.88,149.81,16.6871]
[1719976610109,6.22727103,149.88,149.82,6.6746]
[1719976610314,6.22727103,149.88,149.81,16.6871]
[1719976610623,0.8133141,149.9,149.81,16.6871]
[1719976610787,0.8133141,149.9,149.82,0.34]
[1719976611510,0.8133141,149.9,149.86,6.6727]
[1719976611696,0.8133141,149.9,149.87,0.17]
[1719976611900,0.8133141,149.9,149.83,16.6849]
[1719976612109,0.8133141,149.9,149.84,0.34]
[1719976612323,0.8133141,149.9,149.78,28.9]
[1719976612324,0.8133141,149.9,149.78,128.9]
[1719976612524,0.8133141,149.9,149.88,6.6717]
[1719976613590,0.8133141,149.9,149.89,0.34]
[1719976613791,6.24567726,149.98,149.89,0.34]
[1719976614098,6.1696,150.06,149.89,0.34]
[1719976614099,6.6673,150.03,149.96,6.6683]
[1719976614300,6.6673,150.03,149.97,6.6679]
[1719976614301,6.30451543,150.01,149.97,6.6679]
[1719976614535,6.6673,150.03,149.95,16.6711]
[1719976614826,7.1144151,150.05,149.95,23.3399]
[1719976614989,7.1144151,150.05,149.95,16.6711]
[1719976615187,7.1144151,150.05,149.99,6.6671]
[1719976615406,7.1144151,150.05,149.98,16.6682]
[1719976615620,20.04,150.04,149.87,28.9]
[1719976615932,6.6671,149.99,149.91,6.6705]
[1719976616138,20.04,150.02,149.86,16.6816]
[1719976616497,6.67,149.93,149.84,6.6737]
[1719976616711,20.04,149.99,149.8,15.7423]
[1719976616910,20.04,149.97,149.8,15.7423]
[1719976617129,20.0,149.96,149.8,115.7423]
[1719976617402,20.45780896,149.98,149.87,16.68]
[1719976617608,6.668,149.97,149.88,6.6718]
[1719976617807,20.45780896,149.98,149.9,6.671]
[1719976618007,20.0,149.98,149.87,16.68]
[1719976618222,15.5387,150.03,149.88,0.34]
[1719976618423,6.6671,149.99,149.89,16.6782]
[1719976618602,6.6689,149.95,149.82,100.0]
[1719976618802,6.6693,149.94,149.85,6.6731]
[1719976619122,6.6664,150.01,149.92,6.6701]
[1719976619422,6.6664,150.01,149.92,6.67]
[1719976619627,20.0,150.0,149.94,6.6692]
[1719976619840,6.6658,150.02,149.86,0.17]
[1719976620015,20.2671151,150.05,149.95,6.6688]
[1719976620338,6.6654,150.03,149.95,6.6688]
[1719976620629,7.1144151,150.05,149.98,6.6671]
[1719976620841,0.8133141,150.05,149.94,0.34]
[1719976621007,0.8133141,150.05,149.98,16.6685]
[1719976621332,0.8133141,150.05,149.93,6.6694]
[1719976621541,6.6669,150.0,149.9,6.6711]
[1719976621835,0.8133141,150.05,149.93,16.6738]
[1719976622039,0.8133141,150.05,149.86,100.0]
[1719976622040,0.8133141,150.05,149.86,28.9]
[1719976622205,0.8133141,150.05,149.88,16.6794]
[1719976622206,20.04,150.04,149.88,16.6794]
[1719976622405,6.6674,149.99,149.88,16.6794]
[1719976622610,16.6655,150.01,149.8,15.7423]
[1719976622902,20.0,150.0,149.84,100.0]
[1719976623123,20.0,150.0,149.93,16.6737]
[1719976623431,20.8533141,150.05,149.96,6.6681]
[1719976623432,0.8133141,150.05,149.96,6.6681]
[1719976624017,0.8133141,150.05,149.93,16.6737]
[1719976624218,6.6656,150.03,149.93,23.3431]
[1719976624423,0.8133141,150.05,149.96,16.6706]
[1719976624820,0.8133141,150.05,149.95,6.6687]
[1719976625019,0.8133141,150.05,149.95,16.6719]
[1719976625231,0.8133141,150.05,149.99,6.6671]
[1719976625408,0.8133141,150.05,149.98,0.17]
[1719976625610,0.8133141,150.05,150.01,16.6645]
[1719976625925,0.8133141,150.05,150.02,0.17]
[1719976626111,0.8133141,150.05,150.03,6.6652]
[1719976626309,0.8133141,150.05,150.0,0.34]
[1719976626528,0.8133141,150.05,149.97,16.6695]
[1719976626710,0.8133141,150.05,150.01,6.6659]
[1719976627121,0.8133141,150.05,150.04,6.6648]
[1719976627641,0.8133141,150.05,150.03,23.3275]
[1719976627951,0.8133141,150.05,150.03,6.6653]
[1719976628238,0.8133141,150.05,150.04,6.8348]
[1719976628738,0.8133141,150.05,150.02,16.6642]
[1719976628939,0.8133141,150.05,150.03,0.17]
[1719976629144,0.8133141,150.05,150.02,16.6642]
[1719976629446,0.8133141,150.05,149.94,100.0]
[1719976629611,0.8133141,150.05,149.96,100.0]
[1719976629810,0.8133141,150.05,150.04,6.6648]
[1719976630141,6.30696924,150.15,150.02,100.0]
[1719976630519,20.04,150.18,150.09,6.6626]
[1719976630838,20.04,150.18,150.02,100.0]
[1719976630839,6.30074239,150.19,150.15,6.6599]
[1719976631139,6.6596,150.16,150.08,0.17]
[1719976631343,31.3411,150.25,150.06,15.9712]
[1719976631344,20.04,150.19,150.06,15.9712]
[1719976631555,7.11061597,150.2,150.13,6.6604]
[1719976631837,28.9,150.29,150.07,0.34]
[1719976631838,70.5353,150.29,150.14,6.6603]
[1719976632062,70.5353,150.29,150.12,0.17]
[1719976632063,0.3786764,150.2,150.13,6.6606]
[1719976632228,0.3786764,150.2,150.12,0.34]
[1719976632429,0.3786764,150.2,150.14,0.17]
[1719976632658,0.3786764,150.2,150.12,0.34]
[1719976632659,0.3786764,150.2,150.13,0.17]
[1719976632970,0.3786764,150.2,150.13,6.8305]
[1719976633132,0.3786764,150.2,150.14,0.17]
[1719976633336,0.3786764,150.2,150.13,0.17]
[1719976633563,6.659,150.18,150.06,15.9712]
[1719976633859,7.0364764,150.2,150.11,6.6617]
[1719976634063,20.4186764,150.2,150.06,15.9712]
[1719976634238,20.04,150.19,150.06,15.9712]
[1719976634436,0.3786764,150.2,150.06,15.9712]
[1719976634667,0.3786764,150.2,150.13,6.6606]
[1719976634833,0.3786764,150.2,150.14,6.6603]
[1719976635158,0.3786764,150.2,150.13,6.6605]
[1719976635657,0.3786764,150.2,150.14,6.6604]
[1719976635863,0.3786764,150.2,150.14,0.17]
[1719976637051,0.3786764,150.2,150.19,6.6582]
[1719976637237,0.3786764,150.2,150.19,6.8282]
[1719976637543,0.3786764,150.2,150.19,6.9982]
[1719976637732,0.3786764,150.2,150.19,0.34]
[1719976638362,0.3786764,150.2,150.19,6.9982]
[1719976639251,0.3786764,150.2,150.12,28.9]
[1719976639457,0.3786764,150.2,150.09,6.6624]
[1719976639667,6.6594,150.17,150.08,6.663]
[1719976639874,0.3786764,150.2,150.05,6.6643]
[1719976640186,20.04,150.14,149.97,26.679961]
[1719976640488,6.6635,150.08,149.97,26.679961]
[1719976640689,6.6639,150.07,149.97,26.679961]
[1719976640986,20.04,150.1,149.99,6.667]
[1719976641144,20.04,150.1,149.96,6.6684]
[1719976641145,40.04,150.09,149.96,6.6684]
[1719976641344,40.04,150.09,149.93,6.1413]
[1719976641579,6.6644,150.05,149.96,6.6683]
[1719976641883,16.658,150.08,149.95,6.6685]
[1719976642070,6.6671,149.99,149.92,16.6744]
[1719976642380,6.6661,150.02,149.92,16.6744]
[1719976642558,13.1977,150.08,149.98,6.6673]
[1719976642769,20.0,150.07,149.99,16.6676]
[1719976643087,6.335,150.14,150.02,16.664]
[1719976643248,6.6621,150.11,150.02,23.3293]
[1719976643449,6.6621,150.11,149.95,100.0]
[1719976643450,36.3532,150.12,149.93,100.0]
[1719976643685,6.6622,150.1,149.95,100.0]
[1719976643990,6.335,150.14,150.07,6.6633]
[1719976644275,6.6591,150.17,150.08,6.6626]
[1719976644775,6.6591,150.17,150.09,6.6626]
[1719976644985,15.2437,150.19,150.09,6.6626]
[1719976645153,6.8849764,150.2,150.1,16.6551]
[1719976645484,6.8849764,150.2,150.08,6.6627]
[1719976645485,6.6595,150.17,150.08,6.6627]
[1719976645646,6.8849764,150.2,150.07,0.17]
[1719976645647,6.6585,150.19,150.09,16.6564]
[1719976645849,13.5429764,150.2,150.11,6.6617]
[1719976646168,6.8849764,150.2,150.07,0.17]
[1719976646376,9.53087121,150.2,150.06,0.17]
[1719976646577,6.6591,150.17,150.09,6.6626]
[1719976646757,6.661,150.13,150.0,21.7335]
[1719976646955,7.0393764,150.14,150.04,23.326]
[1719976647160,0.3786764,150.14,150.0,15.1198]
[1719976647390,0.3786764,150.14,149.97,100.0]
[1719976647686,20.4186764,150.14,150.06,6.6636]
[1719976647988,27.0790764,150.14,150.05,6.6644]
[1719976648199,0.3786764,150.14,150.09,6.6624]
[1719976648376,0.3786764,150.14,150.01,100.0]
[1719976648377,0.3786764,150.14,150.01,200.0]
[1719976648684,0.3786764,150.14,150.12,23.3144]
[1719976648986,0.3786764,150.14,150.13,6.8308]
[1719976649303,0.3786764,150.14,150.13,7.0008]
[1719976651663,0.3786764,150.14,150.12,16.6532]
[1719976651990,0.3786764,150.14,150.13,6.6608]
[1719976652589,0.3786764,150.14,150.07,6.6327]
[1719976652765,0.3786764,150.14,150.13,6.6608]
[1719976652968,0.3786764,150.14,150.07,6.6327]
[1719976652969,0.9048376,150.31,150.12,100.0]
[1719976653290,20.04,150.27,150.12,100.0]
[1719976654002,0.9048376,150.31,150.16,100.0]
[1719976654168,0.9048376,150.31,150.17,0.34]
[1719976654487,0.9048376,150.31,150.18,100.0]
[1719976654699,0.9048376,150.31,150.19,1.38999894]
[1719976655007,0.9048376,150.31,150.2,0.17]
[1719976655186,0.9048376,150.31,150.24,6.6559]
[1719976655494,0.9048376,150.31,150.2,0.17]
[1719976655495,0.9048376,150.31,150.29,6.6537]
[1719976655703,0.9048376,150.31,150.2,6.2672]
[1719976655872,7.5577376,150.31,150.21,0.17]
[1719976656068,7.5577376,150.31,150.2,0.17]
[1719976656270,0.9048376,150.31,150.2,0.17]
[1719976656473,0.9048376,150.31,150.27,6.6543]
[1719976656682,0.9048376,150.31,150.19,0.34]
[1719976656976,0.9048376,150.31,150.25,6.6555]
[1719976657308,0.9048376,150.31,150.19,0.17]
[1719976657603,0.9048376,150.31,150.17,116.4221]
[1719976657604,0.9048376,150.31,150.24,6.6559]
[1719976657807,0.9048376,150.31,150.25,0.17]
[1719976658337,0.9048376,150.31,150.25,100.17]
[1719976658600,0.9048376,150.31,150.26,0.17]
[1719976658906,0.9048376,150.31,150.3,6.6533]
[1719976659081,0.9048376,150.31,150.3,6.9933]
[1719976659768,0.9048376,150.31,150.3,0.17]
[1719976659976,0.9048376,150.31,150.23,128.9]
[1719976660201,0.9048376,150.31,150.24,0.34]
[1719976660399,0.9048376,150.31,150.27,100.0]
[1719976660613,0.9048376,150.31,150.28,0.34]
[1719976662283,0.9048376,150.31,150.29,100.0]
[1719976662593,0.9048376,150.31,150.3,0.34]
[1719976663889,0.7248376,150.31,150.3,0.34]
[1719976664106,0.5448376,150.31,150.3,0.34]
[1719976664412,15.6723,150.46,150.32,100.0]
[1719976665082,0.9048376,150.47,150.32,100.0]
[1719976665284,0.9048376,150.47,150.35,100.0]
[1719976666306,0.9048376,150.47,150.37,100.0]
[1719976666506,0.9048376,150.47,150.39,100.0]
[1719976666810,0.9048376,150.47,150.4,0.34]
[1719976667116,0.9048376,150.47,150.41,100.0]
[1719976667289,0.9048376,150.47,150.42,0.34]
[1719976667682,0.9048376,150.47,150.42,0.17]
[1719976667900,0.9048376,150.47,150.39,100.0]
[1719976668107,0.9048376,150.47,150.41,100.0]
[1719976668299,0.9048376,150.47,150.46,100.0]
[1719976668501,0.9048376,150.47,150.46,30.34]
[1719976669901,0.9048376,150.47,150.46,30.0]
[1719976670399,0.9048376,150.47,150.39,100.0]
[1719976670601,0.9048376,150.47,150.42,100.0]
[1719976671033,0.9048376,150.47,150.46,100.0]
[1719976671342,0.9048376,150.47,150.46,100.17]
[1719976671892,0.5448376,150.47,150.46,120.34]
[1719976672694,0.5448376,150.47,150.46,100.34]
[1719976672897,0.5448376,150.47,150.46,120.34]
[1719976673196,0.9048376,150.64,150.52,100.0]
[1719976673712,0.9048376,150.64,150.53,100.0]
[1719976674117,0.9048376,150.64,150.54,0.34]
[1719976674308,0.9048376,150.64,150.55,100.0]
[1719976674515,0.9048376,150.64,150.56,0.34]
[1719976674712,0.9048376,150.64,150.57,0.17]
[1719976675012,0.9048376,150.64,150.54,0.34]
[1719976675013,0.9048376,150.64,150.55,100.0]
[1719976675218,0.9048376,150.64,150.57,100.0]
[1719976675430,0.9048376,150.64,150.58,0.34]
[1719976675607,0.9048376,150.64,150.6,100.0]
[1719976675798,0.9048376,150.64,150.58,28.9]
[1719976676000,0.9048376,150.64,150.57,100.0]
[1719976676228,0.9048376,150.64,150.59,100.0]
[1719976676528,0.9048376,150.64,150.6,0.17]
[1719976677530,0.9048376,150.64,150.6,29.07]
[1719976677731,0.9048376,150.64,150.61,0.17]
[1719976678116,6.3307,150.75,150.61,0.17]
[1719976678117,6.41019294,150.77,150.64,100.0]
[1719976678315,7.0652376,150.81,150.65,0.34]
[1719976679115,45.04,150.79,150.58,100.0]
[1719976679310,20.04,150.77,150.59,1.32438256]
[1719976679520,6.01759672,150.78,150.59,1.32438256]
[1719976679521,7.3861948,150.78,150.59,1.32438256]
[1719976679723,10.03208961,150.78,150.59,1.32438256]
[1719976680024,7.3861948,150.78,150.6,100.0]
[1719976680415,7.3861948,150.78,150.58,100.0]
[1719976680620,0.6769576,150.79,150.57,28.9]
[1719976680621,0.6769576,150.79,150.64,100.0]
[1719976680822,0.6769576,150.79,150.61,28.9]
[1719976683447,6.6341,150.75,150.62,100.0]
[1719976683632,6.6341,150.75,150.58,128.9]
[1719976683937,6.6341,150.75,150.57,28.9]
[1719976684237,33.44379152,150.74,150.52,116.5161]
[1719976684528,20.04,150.69,150.48,100.0]
[1719976684734,20.04,150.65,150.47,260.1]
[1719976684935,20.0,150.64,150.46,100.0]
[1719976685105,40.21,150.64,150.43,128.9]
[1719976685308,20.04,150.62,150.41,366.4027]
[1719976685525,20.04,150.6,150.44,100.0]
[1719976685837,40.04,150.59,150.42,100.0]
[1719976686040,20.04,150.59,150.44,100.0]
[1719976686424,20.0,150.61,150.46,100.0]
[1719976686631,22.62412308,150.63,150.44,128.9]
[1719976687018,22.62412308,150.63,150.46,100.0]
[1719976687538,2.62412308,150.63,150.5,100.0]
[1719976687735,20.04,150.65,150.51,0.34]
[1719976688119,6.1854,150.66,150.56,100.0]
[1719976688317,6.1854,150.66,150.57,0.34]
[1719976689217,6.1246,150.72,150.58,100.0]
[1719976689421,6.1246,150.72,150.59,0.34]
[1719976689626,26.1646,150.72,150.57,100.34]
[1719976689935,26.1646,150.72,150.58,30.0]
[1719976689936,6.1246,150.72,150.58,30.0]
[1719976690147,6.1246,150.72,150.59,100.34]
[1719976690447,26.1646,150.72,150.59,0.34]
[1719976690613,26.1646,150.72,150.58,30.0]
[1719976690811,26.1646,150.72,150.57,0.17]
[1719976691014,26.1646,150.72,150.57,100.0]
[1719976691216,6.1246,150.72,150.58,0.17]
[1719976691411,20.04,150.71,150.56,30.0]
[1719976691648,20.04,150.68,150.56,30.0]
[1719976691813,20.04,150.66,150.56,30.0]
[1719976692422,20.04,150.64,150.45,100.0]
[1719976692736,20.04,150.62,150.47,100.0]
[1719976692931,20.0,150.61,150.47,100.0]
[1719976693129,35.2676,150.65,150.5,100.0]
[1719976693326,35.2676,150.65,150.48,28.9]
[1719976693528,64.1676,150.65,150.49,30.0]
[1719976693713,64.1676,150.65,150.41,656.3055]
[1719976693714,28.9,150.61,150.39,100.0]
[1719976693920,45.34,150.6,150.39,100.0]
[1719976694240,45.34,150.6,150.36,28.9]
[1719976694241,20.04,150.56,150.36,28.9]
[1719976694452,20.04,150.54,150.36,128.9]
[1719976694747,20.04,150.52,150.36,28.9]
[1719976694952,20.04,150.5,150.36,28.9]
[1719976695238,20.04,150.54,150.36,128.9]
[1719976695413,20.0,150.53,150.37,20.0]
[1719976695816,20.0,150.53,150.38,100.0]
[1719976696022,20.0,150.56,150.38,100.0]
[1719976696237,20.0,150.56,150.4,100.0]
[1719976696547,12.23296899,150.6,150.35,260.1]
[1719976696548,28.9,150.57,150.35,260.1]
[1719976696720,0.45780896,150.55,150.35,260.1]
[1719976697142,0.17,150.54,150.35,260.1]
[1719976697436,20.04,150.53,150.35,260.1]
[1719976697641,20.04,150.51,150.33,0.2877168]
[1719976697833,20.04,150.49,150.33,0.2877168]
[1719976698034,15.8579,150.46,150.33,0.2877168]
[1719976698640,20.0,150.45,150.33,0.2877168]
[1719976700918,26.33545145,150.45,150.33,0.2877168]
[1719976701434,20.04,150.44,150.33,0.2877168]
[1719976701625,40.21,150.43,150.33,0.2877168]
[1719976701942,20.04,150.41,150.33,0.2877168]
[1719976702147,20.0,150.4,150.33,0.2877168]
[1719976702730,20.0,150.42,150.33,0.2877168]
[1719976702947,20.0,150.44,150.33,0.2877168]
[1719976703338,15.8579,150.46,150.34,0.34]
[1719976704048,6.0828,150.47,150.34,0.34]
[1719976704250,6.0828,150.47,150.34,100.34]
[1719976704749,6.0828,150.47,150.36,100.0]
[1719976705045,6.0828,150.47,150.37,0.34]
[1719976705234,6.0828,150.47,150.38,0.17]
[1719976705859,6.0828,150.47,150.37,0.17]
[1719976706141,20.0,150.46,150.37,0.17]
[1719976706349,6.0828,150.47,150.37,0.17]
[1719976706719,6.0828,150.47,150.33,0.2877168]
[1719976707051,28.76869481,150.47,150.33,0.2877168]
[1719976707762,0.34,150.46,150.33,0.2877168]
[1719976707948,20.04,150.45,150.33,0.2877168]
[1719976708155,20.04,150.43,150.33,0.2877168]
[1719976708334,8.72869481,150.47,150.33,0.2877168]
[1719976708762,6.0828,150.47,150.33,0.2877168]
[1719976709059,6.0828,150.47,150.34,0.17]
[1719976709454,20.04,150.46,150.34,0.34]
[1719976710071,6.0828,150.47,150.34,0.34]
[1719976711169,6.0828,150.47,150.35,100.0]
[1719976711379,6.0828,150.47,150.36,0.34]
[1719976711852,26.1228,150.47,150.36,0.34]
[1719976712061,20.0,150.46,150.36,0.34]
[1719976712730,40.04,150.46,150.36,0.34]
[1719976712954,40.04,150.46,150.33,0.2877168]
[1719976713337,0.34,150.45,150.33,0.2877168]
[1719976713831,20.04,150.43,150.33,0.2877168]
[1719976714136,31.54589481,150.44,150.33,0.2877168]
[1719976714137,35.3384,150.41,150.33,0.2877168]
[1719976714540,40.04,150.4,150.33,0.2877168]
[1719976714755,26.32510653,150.4,150.33,0.2877168]
[1719976715253,28.74209672,150.47,150.33,0.2877168]
[1719976715254,22.7245,150.47,150.33,0.2877168]
[1719976715455,20.0,150.46,150.33,0.2877168]
[1719976715640,6.31426872,150.45,150.34,0.34]
[1719976715839,40.04,150.44,150.34,0.34]
[1719976716238,6.31426872,150.45,150.34,0.34]
[1719976717947,26.35426872,150.45,150.34,0.34]
[1719976718750,6.0828,150.47,150.34,0.34]
[1719976719065,6.31473744,150.49,150.35,21.5859]
[1719976719254,6.31473744,150.49,150.36,100.34]
[1719976719565,6.31473744,150.49,150.36,0.34]
[1719976719760,6.31473744,150.49,150.36,100.34]
[1719976719962,6.31473744,150.49,150.36,0.34]
[1719976720181,6.5102,150.52,150.36,0.34]
[1719976720473,6.5102,150.52,150.36,100.34]
[1719976720474,12.82360891,150.52,150.36,100.34]
[1719976720674,12.82360891,150.52,150.36,0.34]
[1719976720841,20.04,150.51,150.36,0.34]
[1719976721554,20.04,150.49,150.36,0.34]
[1719976721768,20.0,150.48,150.36,0.34]
[1719976722456,40.04,150.48,150.35,21.5859]
[1719976722653,40.04,150.48,150.33,0.2877168]
[1719976722852,0.34,150.47,150.33,0.2877168]
[1719976723848,20.04,150.44,150.33,0.2877168]
[1719976724067,20.04,150.42,150.33,0.2877168]
[1719976724276,20.0,150.41,150.33,0.2877168]
[1719976724461,6.5202387,150.5,150.34,100.0]
[1719976724665,15.856,150.57,150.35,15.5479]
[1719976724666,28.9,150.56,150.35,15.5479]
[1719976725354,20.04,150.51,150.36,100.34]
[1719976725555,20.04,150.51,150.36,0.34]
[1719976726282,20.04,150.54,150.38,100.0]
[1719976726574,6.31340891,150.52,150.39,20.38]
[1719976726761,6.4876,150.62,150.43,100.0]
[1719976726967,6.4876,150.62,150.44,0.34]
[1719976727164,6.7733239,150.61,150.44,0.34]
[1719976727372,20.04,150.6,150.44,0.34]
[1719976727668,20.49780896,150.6,150.43,0.34]
[1719976727973,48.94,150.6,150.43,0.34]
[1719976728276,48.94,150.6,150.43,0.17]
[1719976728277,0.45780896,150.59,150.43,0.17]
[1719976728443,20.04,150.58,150.38,100.0]
[1719976728644,20.04,150.58,150.39,0.34]
[1719976728959,20.04,150.56,150.4,100.0]
[1719976729275,20.0,150.57,150.42,100.0]
[1719976729476,20.0,150.57,150.43,0.34]
[1719976729772,6.6412,150.58,150.44,106.1739]
[1719976729974,6.6412,150.58,150.5,6.6441]